lending/lending_fUSD_20260306
["ID","MTS","AMOUNT","RATE_DAILY","PERIOD"]
[407850973,1772833845365,-1341.0,0.00036169,2]
[407850974,1772833845376,-3502.0,0.00036169,2]
[407850975,1772833845386,-619.0,0.00036169,2]
[407850976,1772833845395,-1042.0,0.00036169,2]
[407850977,1772833845407,-1212.0,0.00036169,2]
[407850978,1772833845418,-414.0,0.00036169,2]
[407850979,1772833845428,-200.0,0.00036268,40]
[407850980,1772833845439,-150.0,0.0003643,2]
[407850981,1772833845450,-152.0,0.00036565,3]
[407850982,1772833845459,-184.0,0.00036675,30]
[407850983,1772833845468,-150.0,0.0003675,7]
[407850984,1772833845478,-150.0,0.0003675,7]
[407850985,1772833845487,-150.0,0.0003675,7]
[407850986,1772833845498,-241.0,0.0003675,7]
[407850987,1772833845508,-150.0,0.00036782,14]
[407850988,1772833845518,-150.0,0.00036782,14]
[407850989,1772833845528,-158.0,0.00036782,14]
[407850990,1772833845539,-198.0,0.00036782,30]
[407850991,1772833845548,-622.66,0.00036791,30]
[407850992,1772833845558,-737.0,0.000371,2]
[407850993,1772833845568,-471.35,0.0003726,120]
[407850994,1772833845579,-154.0,0.00037471,2]
[407850995,1772833845588,-864.07991914,0.00037483,2]
[407850996,1772833845598,-5028.698,0.0003752,48]
[407850997,1772833845607,-342.602,0.0003752,48]
[407850998,1772833845620,-2000.0,0.000377,2]
[407850999,1772833845629,-218.45388078,0.00037934,2]
[407851000,1772833845639,-185.0,0.00038,30]
[407851001,1772833845648,-490.5,0.00038034,30]
[407851002,1772833845658,-154.7,0.000381,14]
[407851003,1772833845668,-150.0,0.00038252,2]
[407851004,1772833845678,-185.0,0.0003863,90]
[407851005,1772833845687,-195.32,0.00038773,90]
[407851006,1772833845697,-500.0,0.00038782,2]
[407851007,1772833845706,-14393.81556995,0.00038948,2]
[407851008,1772833845717,-152.0,0.00039004,4]
[407851009,1772833845726,-1341.0,0.00039169,2]
[407851010,1772833845735,-3502.0,0.00039169,2]
[407851011,1772833845744,-619.0,0.00039169,2]
[407851012,1772833845754,-1042.0,0.00039169,2]
[407851013,1772833845763,-1212.0,0.00039169,2]
[407851014,1772833845772,-414.0,0.00039169,2]
[407851015,1772833845781,-150.0,0.00039375,14]
[407851016,1772833845791,-150.0,0.00039375,14]
[407851017,1772833845800,-150.0,0.00039375,14]
[407851018,1772833845809,-155.0,0.00039375,14]
[407851019,1772833845819,-218.45388078,0.00039466,2]
[407851020,1772833845828,-150.0,0.00039642,21]
[407851021,1772833845838,-177.0,0.00039642,21]
[407851022,1772833845848,-622.66,0.00039726,30]
[407851024,1772833845859,-243.28992101,0.00039998,120]
[407851025,1772833845870,-152.0,0.0004,120]
[407851026,1772833845879,-154.0,0.0004,120]
[407851027,1772833845888,-10000.0,0.0004,10]
[407851028,1772833845897,-49193.1714747,0.0004,120]
[407851029,1772833845907,-160.0,0.0004,120]
[407851030,1772833845916,-160.0,0.0004,10]
[407851031,1772833845926,-5000.0000001,0.0004,10]
[407851032,1772833845936,-3009.14060351,0.0004,60]
[407851033,1772833845946,-150.0,0.00040165,2]
[407851034,1772833845955,-200.070451,0.00040211,9]
[407851035,1772833845965,-185.0,0.00040274,90]
[407851036,1772833845974,-150.1,0.00040578,2]
[407851037,1772833845987,-150.1,0.00040578,2]
[407851038,1772833845996,-150.1,0.00040578,2]
[407851039,1772833846007,-150.1,0.00040578,2]
[407851040,1772833846017,-152.69708215,0.00040578,2]
[407851041,1772833846027,-24162.88,0.000407,6]
[407851042,1772833846037,-150.1,0.00040782,2]
[407851043,1772833846046,-150.1,0.00040782,2]
[407851044,1772833846057,-150.1,0.00040782,2]
[407851045,1772833846066,-150.1,0.00040782,2]
[407851046,1772833846075,-150.1,0.00040782,2]
[407851047,1772833846085,-150.1,0.00040782,2]
[407851048,1772833846102,-150.1,0.00040782,2]
[407851049,1772833846112,-150.1,0.00040782,2]
[407851050,1772833846122,-150.1,0.00040782,2]
[407851051,1772833846135,-150.1,0.00040782,2]
[407851052,1772833846148,-150.1,0.00040782,2]
[407851053,1772833846167,-150.1,0.00040782,2]
[407851054,1772833846179,-150.1,0.00040782,2]
[407851055,1772833846188,-150.1,0.00040782,2]
[407851056,1772833846198,-150.1,0.00040782,2]
[407851057,1772833846207,-168.90744591,0.00040782,2]
[407851058,1772833846217,-186793.0,0.0004095,60]
[407851059,1772833846226,-218.45388078,0.00040998,2]
[407851060,1772833846236,-152.0,0.00041,120]
[407851061,1772833846245,-154.0,0.00041,120]
[407851062,1772833846254,-154.22865418,0.00041068,22]
[407851063,1772833846263,-746.0,0.00041096,120]
[407851064,1772833846273,-300.0,0.00041096,10]
[407851065,1772833846282,-150.0,0.00041096,10]
[407851066,1772833846292,-150.0,0.00041096,10]
[407851067,1772833846301,-50000.0,0.00041096,60]
[407851069,1772833846311,-746.0,0.0004137,120]
[407851071,1772833846320,-2000.0,0.000414,2]
[407851073,1772833846329,-152.0,0.00041443,5]
[407851075,1772833846338,-500.0,0.00041521,2]
[407851076,1772833846347,-1240.84,0.00041592,2]
[407851077,1772833846357,-746.0,0.00041644,120]
[407851078,1772833846366,-250.0,0.00041644,10]
[407851079,1772833846376,-250.0,0.00041644,10]
[407851080,1772833846387,-300.0,0.000419,15]
[407851081,1772833846397,-746.0,0.00041918,120]
[407851082,1772833846407,-485.832644,0.00041918,10]
[407851083,1772833846416,-152.0,0.00042,120]
[407851084,1772833846425,-154.0,0.00042,120]
[407851085,1772833846435,-30000.0,0.00042,60]
[407851086,1772833846444,-17458.55839771,0.00042,120]
[407851087,1772833846454,-162.39,0.0004213,60]
[407851088,1772833846463,-14393.81556995,0.00042132,15]
[407851089,1772833846472,-1341.0,0.00042169,2]
[407851090,1772833846482,-3502.0,0.00042169,2]
[407851091,1772833846492,-619.0,0.00042169,2]
[407851092,1772833846501,-1042.0,0.00042169,2]
[407851093,1772833846511,-1212.0,0.00042169,2]
[407851094,1772833846521,-189.392,0.00042169,2]
[407851095,1772833846531,-150.0,0.00042173,120]
[407851096,1772833846540,-746.0,0.00042192,120]
[407851097,1772833846550,-350.0,0.00042192,10]
[407851098,1772833846561,-359.31184279,0.00042192,10]
[407851099,1772833846570,-190344.5613,0.0004222,7]
[407851100,1772833846579,-151.0,0.00042232,120]
[407851101,1772833846590,-151.0,0.00042232,2]
[407851102,1772833846599,-151.0,0.00042232,2]
[407851103,1772833846608,-151.0,0.00042232,2]
[407851104,1772833846617,-151.0,0.00042232,120]
[407851105,1772833846627,-864.07991914,0.0004227,28]
[407851106,1772833846636,-185.0,0.00042288,90]
[407851107,1772833846645,-186793.0,0.000423,60]
[407851108,1772833846655,-154.828057,0.000423,120]
[407851109,1772833846664,-151.0,0.000423,120]
[407851110,1772833846673,-732.794215,0.000423,120]
[407851111,1772833846683,-732.794215,0.000423,120]
[407851112,1772833846692,-732.794215,0.000423,120]
[407851113,1772833846702,-732.794215,0.000423,120]
[407851114,1772833846711,-151.0,0.000423,120]
[407851115,1772833846720,-151.0,0.000423,120]
[407851116,1772833846729,-191.13408,0.000423,120]
[407851117,1772833846738,-151.0,0.000423,120]
[407851118,1772833846748,-151.0,0.000423,120]
[407851119,1772833846758,-151.0,0.000423,120]
[407851120,1772833846772,-151.0,0.000423,120]
[407851121,1772833846781,-151.0,0.000423,120]
[407851122,1772833846790,-151.0,0.000423,120]
[407851123,1772833846800,-159.588177,0.000423,120]
[407851124,1772833846809,-174.335232,0.000423,120]
[407851125,1772833846818,-189.021769,0.000423,120]
[407851126,1772833846828,-151.0,0.000423,120]
[407851127,1772833846837,-151.0,0.000423,120]
[407851128,1772833846847,-151.0,0.000423,120]
[407851129,1772833846856,-151.0,0.000423,2]
[407851130,1772833846866,-176.753931,0.000423,120]
[407851131,1772833847056,-176.753931,0.000423,120]
[407851132,1772833847069,-176.753931,0.000423,120]
[407851133,1772833847079,-176.753931,0.000423,120]
[407851134,1772833847089,-177.699811,0.000423,120]
[407851135,1772833847099,-151.0,0.000423,120]
[407851136,1772833847108,-151.0,0.000423,120]
[407851137,1772833847118,-230.880738,0.000423,120]
[407851138,1772833847127,-151.0,0.000423,120]
[407851139,1772833847136,-230.510713,0.000423,120]
[407851140,1772833847145,-151.0,0.000423,120]
[407851141,1772833847155,-1447.985089,0.000423,120]
[407851142,1772833847164,-1447.985089,0.000423,120]
[407851143,1772833847174,-279.245746,0.000423,120]
[407851144,1772833847183,-151.0,0.000423,120]
[407851145,1772833847193,-1447.985089,0.000423,120]
[407851146,1772833847203,-151.0,0.000423,120]
[407851147,1772833847212,-279.245746,0.000423,120]
[407851148,1772833847221,-151.0,0.000423,120]
[407851149,1772833847230,-1447.985089,0.000423,120]
[407851150,1772833847239,-279.245746,0.000423,120]
[407851151,1772833847248,-279.245746,0.000423,120]
[407851152,1772833847259,-151.0,0.000423,120]
[407851153,1772833847270,-151.0,0.000423,120]
[407851154,1772833847280,-151.0,0.000423,120]
[407851155,1772833847290,-151.0,0.000423,120]
[407851156,1772833847299,-151.0,0.000423,120]
[407851157,1772833847309,-151.0,0.000423,120]
[407851158,1772833847319,-151.0,0.000423,120]
[407851159,1772833847330,-151.0,0.000423,120]
[407851160,1772833847340,-151.0,0.000423,120]
[407851161,1772833847350,-222.139838,0.000423,120]
[407851162,1772833847359,-151.0,0.000423,120]
[407851163,1772833847369,-222.139838,0.000423,120]
[407851164,1772833847379,-222.139838,0.000423,120]
[407851165,1772833847388,-222.139838,0.000423,120]
[407851166,1772833847398,-174.675152,0.000423,120]
[407851167,1772833847407,-151.0,0.000423,120]
[407851168,1772833847417,-174.675152,0.000423,120]
[407851169,1772833847427,-174.675152,0.000423,120]
[407851170,1772833847436,-174.675152,0.000423,120]
[407851171,1772833847445,-151.0,0.000423,120]
[407851172,1772833847455,-151.0,0.000423,120]
[407851173,1772833847464,-151.0,0.000423,120]
[407851174,1772833847474,-200.0,0.000423,120]
[407851175,1772833847484,-200.0,0.000423,120]
[407851176,1772833847494,-200.0,0.000423,120]
[407851177,1772833847503,-1236.417622,0.000423,120]
[407851178,1772833847513,-200.0,0.000423,120]
[407851179,1772833847523,-1236.417622,0.000423,120]
[407851180,1772833847532,-1236.417622,0.000423,120]
[407851181,1772833847541,-1236.417622,0.000423,120]
[407851182,1772833847551,-151.0,0.000423,120]
[407851183,1772833847560,-151.0,0.000423,120]
[407851184,1772833847571,-151.0,0.000423,120]
[407851185,1772833847580,-151.0,0.000423,120]
[407851186,1772833847589,-151.0,0.000423,120]
[407851187,1772833847599,-151.0,0.000423,120]
[407851188,1772833847609,-151.0,0.000423,120]
[407851189,1772833847618,-151.0,0.000423,120]
[407851190,1772833847627,-151.000007,0.000423,120]
[407851191,1772833847636,-151.0,0.000423,120]
[407851192,1772833847646,-151.0,0.000423,120]
[407851193,1772833847655,-151.0,0.000423,120]
[407851194,1772833847664,-203.661833,0.000423,120]
[407851195,1772833847674,-151.0,0.000423,120]
[407851196,1772833847683,-151.0,0.000423,120]
[407851197,1772833847693,-203.661833,0.000423,120]
[407851198,1772833847702,-151.450532,0.000423,120]
[407851199,1772833847711,-199.591417,0.000423,120]
[407851200,1772833847720,-203.661833,0.000423,120]
[407851201,1772833847730,-151.0,0.000423,120]
[407851202,1772833847739,-203.661833,0.000423,120]
[407851203,1772833847748,-276.169746,0.000423,120]
[407851204,1772833847757,-182.336807,0.000423,120]
[407851205,1772833847766,-151.0,0.000423,120]
[407851206,1772833847775,-492.055808,0.000423,120]
[407851207,1772833847784,-151.0,0.000423,120]
[407851208,1772833847794,-1035.164431,0.000423,120]
[407851209,1772833847804,-151.0,0.000423,120]
[407851210,1772833847814,-492.055808,0.000423,120]
[407851211,1772833847824,-1035.164431,0.000423,120]
[407851212,1772833847834,-492.055808,0.000423,120]
[407851213,1772833847843,-1035.164431,0.000423,120]
[407851214,1772833847854,-492.055808,0.000423,120]
[407851215,1772833847863,-151.0,0.000423,120]
[407851216,1772833847872,-1035.164431,0.000423,120]
[407851217,1772833847881,-340.992679,0.000423,120]
[407851218,1772833847891,-340.992679,0.000423,120]
[407851219,1772833847900,-151.0,0.000423,120]
[407851220,1772833847909,-340.992679,0.000423,120]
[407851221,1772833847918,-151.0,0.000423,120]
[407851222,1772833847927,-340.992679,0.000423,120]
[407851223,1772833847937,-151.0,0.000423,120]
[407851224,1772833847946,-300.795903,0.000423,120]
[407851225,1772833847955,-225.482149,0.000423,28]
[407851226,1772833847964,-225.482149,0.000423,28]
[407851227,1772833847973,-225.482149,0.000423,28]
[407851228,1772833847985,-225.482149,0.000423,28]
[407851229,1772833847995,-151.0,0.000423,120]
[407851230,1772833848004,-151.0,0.000423,120]
[407851231,1772833848014,-151.0,0.000423,120]
[407851232,1772833848023,-151.0,0.000423,120]
[407851233,1772833848035,-216.67011,0.000423,120]
[407851234,1772833848044,-216.67011,0.000423,120]
[407851235,1772833848053,-164.904108,0.000423,120]
[407851236,1772833848063,-216.67011,0.000423,120]
[407851237,1772833848072,-216.67011,0.000423,120]
[407851238,1772833848081,-400.523151,0.000423,120]
[407851239,1772833848091,-400.523151,0.000423,120]
[407851240,1772833848100,-400.523151,0.000423,120]
[407851241,1772833848109,-400.523151,0.000423,120]
[407851242,1772833848119,-500.0,0.00042348,120]
[407851243,1772833848128,-291.19125143,0.00042348,120]
[407851244,1772833848138,-150.0,0.00042438,21]
[407851245,1772833848147,-282.0,0.00042438,21]
[407851246,1772833848156,-500.0,0.00042438,120]
[407851247,1772833848165,-500.0,0.00042438,120]
[407851248,1772833848174,-1048.71972246,0.0004245,2]
[407851249,1772833848184,-306.68079331,0.0004245,2]
[407851250,1772833848193,-856.31686265,0.0004245,2]
[407851251,1772833848202,-1868.53914027,0.0004245,2]
[407851252,1772833848211,-307.943616,0.0004245,2]
[407851253,1772833848222,-459.47941262,0.0004245,2]
[407851254,1772833848231,-372.20230898,0.0004245,2]
[407851255,1772833848241,-306.8999554,0.0004245,2]
[407851256,1772833848250,-300.0,0.0004245,2]
[407851257,1772833848259,-1084.42255485,0.0004245,2]
[407851258,1772833848269,-300.0,0.0004245,2]
[407851259,1772833848279,-1048.71972246,0.0004245,2]
[407851260,1772833848288,-306.68079331,0.0004245,2]
[407851261,1772833848298,-856.31686265,0.0004245,2]
[407851262,1772833848307,-307.943616,0.0004245,2]
[407851263,1772833848318,-459.47941262,0.0004245,2]
[407851264,1772833848327,-498.85696441,0.0004245,2]
[407851265,1772833848337,-519.71301933,0.0004245,2]
[407851266,1772833848347,-306.8999554,0.0004245,2]
[407851267,1772833848356,-507.11197358,0.0004245,2]
[407851268,1772833848366,-1084.42255485,0.0004245,2]
[407851269,1772833848375,-300.0,0.0004245,2]
[407851270,1772833848384,-300.0,0.0004245,2]
[407851271,1772833848393,-1048.71972246,0.0004245,2]
[407851272,1772833848402,-306.68079331,0.0004245,2]
[407851273,1772833848411,-856.31686265,0.0004245,2]
[407851274,1772833848420,-307.943616,0.0004245,2]
[407851275,1772833848429,-459.47941262,0.0004245,2]
[407851276,1772833848438,-732.67973587,0.0004245,2]
[407851277,1772833848448,-513.84997243,0.0004245,2]
[407851278,1772833848457,-1084.42255485,0.0004245,2]
[407851279,1772833848467,-300.0,0.0004245,2]
[407851280,1772833848476,-300.0,0.0004245,2]
[407851281,1772833848486,-1048.71972246,0.0004245,2]
[407851282,1772833848495,-306.68079331,0.0004245,2]
[407851283,1772833848505,-856.31686265,0.0004245,2]
[407851284,1772833848514,-412.52131136,0.0004245,2]
[407851285,1772833848524,-615.52871134,0.0004245,2]
[407851286,1772833848533,-997.17014279,0.0004245,2]
[407851287,1772833848543,-456.65989579,0.0004245,2]
[407851288,1772833848553,-300.0,0.0004245,2]
[407851289,1772833848562,-1048.71972246,0.0004245,2]
[407851290,1772833848572,-306.68079331,0.0004245,2]
[407851291,1772833848582,-856.31686265,0.0004245,2]
[407851292,1772833848591,-300.0,0.0004245,2]
[407851293,1772833848600,-1048.71972246,0.0004245,2]
[407851294,1772833848610,-410.61642319,0.0004245,2]
[407851295,1772833848619,-719.49803138,0.0004245,2]
[407851296,1772833848628,-300.0,0.0004245,2]
[407851297,1772833848638,-746.0,0.00042466,120]
[407851298,1772833848648,-500.0,0.00042466,60]
[407851299,1772833848657,-500.0,0.00042466,60]
[407851300,1772833848667,-500.0,0.00042466,60]
[407851301,1772833848679,-500.0,0.00042466,60]
[407851302,1772833848688,-500.0,0.00042466,60]
[407851303,1772833848698,-500.0,0.00042466,60]
[407851304,1772833848707,-500.0,0.00042466,60]
[407851305,1772833848717,-500.0,0.00042466,60]
[407851306,1772833848726,-500.0,0.00042466,60]
[407851307,1772833848735,-500.0,0.00042466,60]
[407851308,1772833848744,-500.0,0.00042466,60]
[407851309,1772833848753,-500.0,0.00042466,60]
[407851310,1772833848763,-500.0,0.00042466,60]
[407851311,1772833848772,-500.0,0.00042466,60]
[407851312,1772833848781,-500.0,0.00042466,60]
[407851313,1772833848790,-500.0,0.00042466,60]
[407851314,1772833848799,-500.0,0.00042466,60]
[407851315,1772833848808,-500.0,0.00042466,60]
[407851316,1772833848817,-500.0,0.00042466,60]
[407851317,1772833848826,-500.0,0.00042466,60]
[407851318,1772833848835,-500.0,0.00042466,60]
[407851319,1772833848844,-500.0,0.00042466,60]
[407851320,1772833848854,-500.0,0.00042466,60]
[407851321,1772833848863,-500.0,0.00042466,60]
[407851322,1772833848873,-500.0,0.00042466,60]
[407851323,1772833848882,-500.0,0.00042466,60]
[407851324,1772833848891,-500.0,0.00042466,60]
[407851325,1772833848901,-500.0,0.00042466,60]
[407851326,1772833848911,-500.0,0.00042466,60]
[407851327,1772833848920,-500.0,0.00042466,60]
[407851328,1772833848929,-500.0,0.00042466,60]
[407851329,1772833848938,-500.0,0.00042466,60]
[407851330,1772833848948,-500.0,0.00042466,60]
[407851331,1772833848957,-500.0,0.00042466,60]
[407851332,1772833848966,-500.0,0.00042466,60]
[407851333,1772833848975,-500.0,0.00042466,60]
[407851334,1772833848988,-500.0,0.00042466,60]
[407851335,1772833848998,-500.0,0.00042466,60]
[407851336,1772833849007,-500.0,0.00042466,60]
[407851337,1772833849017,-500.0,0.00042466,60]
[407851338,1772833849027,-500.0,0.00042466,60]
[407851339,1772833849036,-500.0,0.00042466,60]
[407851340,1772833849046,-500.0,0.00042466,60]
[407851341,1772833849056,-500.0,0.00042466,60]
[407851342,1772833849066,-500.0,0.00042466,60]
[407851343,1772833849075,-500.0,0.00042466,60]
[407851344,1772833849085,-500.0,0.00042466,60]
[407851345,1772833849094,-500.0,0.00042466,60]
[407851346,1772833849103,-500.0,0.00042466,60]
[407851347,1772833849112,-500.0,0.00042466,60]
[407851348,1772833849122,-500.0,0.00042466,60]
[407851349,1772833849131,-500.0,0.00042466,60]
[407851350,1772833849140,-500.0,0.00042466,60]
[407851351,1772833849149,-500.0,0.00042466,60]
[407851352,1772833849159,-500.0,0.00042466,60]
[407851353,1772833849168,-500.0,0.00042466,60]
[407851354,1772833849177,-902.0,0.00042466,60]
[407851355,1772833849186,-218.45388078,0.00042531,8]
[407851356,1772833849195,-367.87,0.00042546,120]
[407851357,1772833849204,-298.0,0.0004257,120]
[407851358,1772833849214,-298.0,0.0004257,120]
[407851359,1772833849224,-500.0,0.00042575,120]
[407851360,1772833849233,-500.0,0.00042575,120]
[407851361,1772833849242,-622.66,0.00042661,120]
[407851362,1772833849251,-464.98917224,0.00042695,2]
[407851363,1772833849260,-500.0,0.00042712,120]
[407851364,1772833849269,-500.0,0.00042712,120]
[407851365,1772833849279,-746.0,0.0004274,120]
[407851366,1772833849288,-1796.69972896,0.0004274,14]
[407851367,1772833849297,-450.0,0.0004274,10]
[407851368,1772833849307,-151.0,0.0004274,120]
[407851369,1772833849316,-36874.52001824,0.00042743,7]
[407851370,1772833849326,-180.01,0.000428,14]
[407851371,1772833849335,-500.0,0.00042849,120]
[407851372,1772833849345,-504.24177542,0.00042849,120]
[407851373,1772833849354,-195.32,0.00042966,90]
[407851374,1772833849364,-500.0,0.00042986,120]
[407851375,1772833849423,-152.0,0.00043,120]
[407851376,1772833849433,-154.0,0.00043,120]
[407851377,1772833849442,-214.0,0.00043,7]
[407851378,1772833849451,-18947.47829789,0.00043,10]
[407851379,1772833849461,-3963.3325849,0.00043,30]
[407851380,1772833849470,-1324.7976711,0.00043,15]
[407851381,1772833849480,-237.3074631,0.00043,120]
[407851382,1772833849489,-1676.76505803,0.00043,120]
[407851383,1772833849498,-1728.15071473,0.00043,2]
[407851384,1772833849507,-393.28545405,0.00043,2]
[407851385,1772833849518,-757.69555188,0.00043,10]
[407851386,1772833849527,-298.0,0.00043,120]
[407851387,1772833849536,-485.44627382,0.00043014,120]
[407851388,1772833849769,-260.55372618,0.00043014,120]
[407851389,1772833849779,-200.0,0.00043068,120]
[407851390,1772833849788,-200.0,0.00043068,120]
[407851391,1772833849797,-200.0,0.00043068,120]
[407851392,1772833849806,-200.0,0.00043068,120]
[407851393,1772833849815,-200.0,0.00043068,120]
[407851394,1772833849824,-250.86,0.00043068,120]
[407851395,1772833849833,-205.84040559,0.00043123,120]
[407851396,1772833849843,-800.0,0.00043161,16]
[407851397,1772833849852,-800.0,0.00043161,16]
[407851398,1772833849862,-800.0,0.00043161,16]
[407851399,1772833849871,-800.0,0.00043161,16]
[407851400,1772833849880,-800.0,0.00043161,16]
[407851401,1772833849889,-800.0,0.00043161,16]
[407851402,1772833849898,-800.0,0.00043161,16]
[407851403,1772833849907,-800.0,0.00043161,16]
[407851404,1772833849916,-200.0,0.000432,24]
[407851405,1772833849925,-800.0,0.00043203,16]
[407851406,1772833849934,-800.0,0.00043203,16]
[407851407,1772833849943,-800.0,0.00043203,16]
[407851408,1772833849951,-800.0,0.00043203,16]
[407851409,1772833849961,-800.0,0.00043203,16]
[407851410,1772833849970,-800.0,0.00043203,16]
[407851411,1772833849979,-800.0,0.00043203,16]
[407851412,1772833849992,-686.20347839,0.00043203,16]
[407851413,1772833850504,-500.0,0.00014819,2]
[407851414,1772833850514,-113.79652161,0.00043203,16]
[407851415,1772833850523,-13167.32277993,0.0004321,120]
[407851417,1772833935847,500.0,0.0001142,2]
[407851418,1772833935953,500.0,0.0001142,2]
[407851419,1772833936313,518.80014401,8e-05,2]
[407851420,1772833936437,500.0,8e-05,2]
[407851421,1772833936488,510.32990281,0.0001142,2]
[407851422,1772833937469,576.36919382,0.0001142,2]
[407851427,1772834168552,-3017.218,0.00013261,2]
[407851428,1772834168584,-205.561,0.00013261,2]
[407851429,1772834168617,-1200.0,0.00013331,2]
[407851430,1772834168993,-300.0,0.00013331,2]
[407851431,1772834172675,-1000.0,0.00013332,2]
[407851432,1772834172706,-2500.0,0.00013332,2]
[407851434,1772834238022,165.79721534,0.00013232,2]
[407851435,1772834361352,2914.42,0.00013,2]
[407851444,1772834482495,-300.0,0.0001333,2]
[407851445,1772834482525,-300.0,0.0001333,2]
[407851446,1772834482554,-1200.0,0.00013331,2]
[407851447,1772834482582,-150.0,0.00013331,2]
[407851448,1772834482610,-500.0,0.00013331,2]
[407851449,1772834482638,-500.0,0.00013331,2]
[407851450,1772834482666,-300.0,0.00013331,2]
[407851451,1772834482694,-500.0,0.00013331,2]
[407851452,1772834482942,-150.0,0.00013331,14]
[407851453,1772834482971,-193.72407298,0.00013331,2]
[407851454,1772834482998,-260.0,0.00013331,2]
[407851455,1772834483427,-7097.25346243,0.00013332,2]
[407851456,1772834483444,-10000.01,0.00013332,2]
[407851457,1772834483463,-10000.01,0.00013332,2]
[407851458,1772834483481,-5814.86953757,0.00013332,2]
[407851459,1772834483490,-1000.0,0.00013332,2]
[407851460,1772834483499,-2500.0,0.00013332,2]
[407851461,1772834483509,-685.14046243,0.00013372,2]
[407851462,1772834483523,-314.85953757,0.00013372,2]
[407851463,1772834483532,-9685.15046243,0.00013373,2]
[407851465,1772834504523,-4085.911,0.00013163,2]
[407851466,1772834504556,-278.37,0.00013163,2]
[407851467,1772834504620,-1271.448,0.000133,3]
[407851468,1772834504658,-1623.682,0.000133,3]
[407851469,1772834504692,-3352.72428543,0.00013373,2]
[407851470,1772834504734,-47.19742914,0.00013373,2]
[407851471,1772834504772,-3834.32881382,0.00013373,2]
[407851472,1772834504799,-2331.35237236,0.00013373,2]
[407851473,1772834507768,256.45078369,0.0001,2]
[407851474,1772834517822,1000.0,0.00013332,2]
[407851475,1772834521914,352.187629,0.00013013,2]
[407851476,1772834522991,1175.988,0.00013331,2]
[407851477,1772834523370,157.04052073,0.0001332,2]
[407851478,1772834526819,5974.18819056,0.00013373,2]
[407851479,1772834535796,500.0,0.0001142,2]
[407851480,1772834535826,584.15487602,0.00013331,2]
[407851481,1772834535849,1122.27732398,0.00013331,2]
[407851482,1772834535881,500.0,0.0001142,2]
[407851483,1772834535913,500.0,0.0001142,2]
[407851484,1772834535957,500.0,0.0001142,2]
[407851485,1772834536166,500.0,0.0001142,2]
[407851486,1772834536629,500.0,8.261e-05,2]
[407851487,1772834537131,530.45831598,8.261e-05,2]
[407851488,1772834537453,501.15119853,0.0001142,2]
[407851489,1772834538178,216.65270601,0.0001,2]
[407851490,1772834541655,510.39170789,0.0001142,2]
[407851491,1772834541708,2500.0,0.00013332,2]
[407851493,1772834544308,500.0,0.0001142,2]